[Event "5th EFE Metz Festival IM 2019"]
[Site "Metz"]
[Date "2019.07.26"]
[Round "7.4"]
[White "Mouhamad, Joachin"]
[Black "Ravi, Teja S."]
[Result "0-1"]
[ECO "B15"]
[WhiteElo "2302"]
[BlackElo "2410"]
[Annotator "NA"]
[PlyCount "96"]
[EventDate "2019.07.22"]
[EventType "tourn"]
[EventCountry "FRA"]
[SourceTitle "playchess.com"]
[Source "ChessBase"]
[SourceQuality "1"]
[TimeControl "5400+30"]

1. e4 {[%emt 0:00:17]} c6 {[%emt 0:02:15]} 2. d4 {[%emt 0:00:23]} d5 {[%emt 0:00:11]} 3. Nc3 {[%emt 0:00:02]} dxe4 {[%emt 0:00:21]} 4. Nxe4 {[%emt 0:00:03]} Nf6 {[%emt 0:00:08]} 5. Nxf6+ {[%emt 0:00:05]} exf6 {[%emt 0:00:03]} 6. c3 {[%emt 0:00:07]} Bd6 {[%emt 0:00:15]} 7. Bd3 {[%emt 0:00:09]} O-O {[%emt 0:00:07]} 8. Qc2 {[%emt 0:00:04]} Re8+ {[%emt 0:00:03]} 9. Ne2 {[%emt 0:00:06]} h5 {[%emt 0:00:03]} 10. O-O {[%emt 0:03:20]} h4 {[%emt 0:00:19]} 11. h3 {[%emt 0:01:39]} Nd7 {[%emt 0:00:13]} 12. Bd2 {[%emt 0:04:04]} Nf8 {[%emt 0:00:24]} 13. Rae1 {[%emt 0:00:17]} Bd7 {[%emt 0:02:00]} 14. Qc1 {[%emt 0:05:26]} Ng6 {[%emt 0:17:00]} 15. Qc2 {[%emt 0:03:41]} Nf8 {[%emt 0:04:22]} 16. Qc1 {[%emt 0:04:17]} Ng6 {[%emt 0:12:29]} 17. Nf4 {[%emt 0:06:19]} Ne7 {[%emt 0:01:24]} 18. Qd1 {[%emt 0:02:56]} g6 {[%emt 0:07:14]} 19. Bc4 {[%emt 0:10:39]} b5 {[%emt 0:02:45]} 20. Bb3 {[%emt 0:00:52]} Bf5 {[%emt 0:10:06]} 21. Qf3 {[%emt 0:07:09]} Qd7 {[%emt 0:00:19]} 22. Qd1 {[%emt 0:29:56]} Kg7 {[%emt 0:03:22]} 23. Bc2 {[%emt 0:04:17]} Bc7 24. Bxf5 Nxf5 {[%emt 0:08:13]} 25. Qg4 {[%emt 0:05:12]} Kh7 {[%emt 0:01:02]} 26. Nd3 {[%emt 0:00:42]} Rxe1 {[%emt 0:00:36]} 27. Rxe1 {[%emt 0:00:06]} Re8 {[%emt 0:00:13]} 28. Rxe8 {[%emt 0:01:51]} Qxe8 {[%emt 0:00:03]} 29. Nc5 {[%emt 0:00:34]} Kg7 {[%emt 0:01:21]} 30. Qe4 {[%emt 0:00:22]} Qc8 {[%emt 0:01:20]} 31. Nd3 {[%emt 0:04:06]} Bd6 {[%emt 0:01:28]} 32. Bf4 {[%emt 0:01:49]} Be7 {[%emt 0:00:43]} 33. a3 {[%emt 0:03:48]} Qd7 {[%emt 0:00:25]} 34. Kf1 {[%emt 0:00:55]} a5 {[%emt 0:01:30]} 35. Bd2 {[%emt 0:00:48]} c5 {[%emt 0:05:36]} 36. dxc5 {[%emt 0:00:26]} Bxc5 {[%emt 0:00:07]} 37. Nxc5 {[%emt 0:00:43]} Qxd2 {[%emt 0:00:04]} 38. Nd3 {[%emt 0:00:13]} Qd1+ {[%emt 0:01:37]} 39. Ne1 {[%emt 0:00:05]} Qc1 {[%emt 0:02:04]} 40. Qc2 {[%emt 0:00:19]} Qf4 {[%emt 0:00:31]} 41. Nf3 {[%emt 0:00:23]} a4 {[%emt 0:01:19]} 42. b3 {[%emt 0:00:52]} Nd6 {[%emt 0:02:06]} 43. bxa4 {[%emt 0:00:32]} bxa4 {[%emt 0:00:55]} 44. Nd4 {[%emt 0:01:32]} Ne4 {[%emt 0:00:18]} 45. Kg1 {[%emt 0:00:27]} Nc5 {[%emt 0:02:07]} 46. Nf3 {[%emt 0:00:18]} Qc4 {[%emt 0:00:23]} 47. Nd2 {[%emt 0:00:25]} Qe2 {[%emt 0:00:16]} 48. f3 {[%emt 0:00:47]} Nb3 {[%emt 0:02:07]} 0-1

[Event "5th EFE Metz Festival IM 2019"]
[Site "Metz"]
[Date "2019.07.26"]
[Round "7.5"]
[White "Harutyunyan, Ruben"]
[Black "Villegas, Pierre"]
[Result "1-0"]
[ECO "A06"]
[WhiteElo "2326"]
[BlackElo "2349"]
[Annotator "NA"]
[PlyCount "61"]
[EventDate "2019.07.22"]
[EventType "tourn"]
[EventCountry "FRA"]
[SourceTitle "playchess.com"]
[Source "ChessBase"]
[SourceQuality "1"]
[TimeControl "5400+30"]

1. Nf3 {[%emt 0:00:00]} d5 {[%emt 0:00:00]} 2. g3 {[%emt 0:00:00]} Nf6 {[%emt 0:00:04]} 3. Bg2 {[%emt 0:00:00]} e6 {[%emt 0:02:41]} 4. O-O {[%emt 0:00:00]} c5 {[%emt 0:00:11]} 5. d3 {[%emt 0:00:01]} Nc6 {[%emt 0:00:21]} 6. Nbd2 {[%emt 0:00:05]} g6 {[%emt 0:00:05]} 7. e4 {[%emt 0:00:26]} Bg7 {[%emt 0:00:06]} 8. Re1 {[%emt 0:02:40]} O-O {[%emt 0:00:28]} 9. c3 {[%emt 0:00:41]} a5 {[%emt 0:00:52]} 10. e5 {[%emt 0:02:43]} Nd7 {[%emt 0:00:18]} 11. d4 {[%emt 0:00:04]} cxd4 {[%emt 0:00:15]} 12. cxd4 {[%emt 0:00:03]} f6 {[%emt 0:00:06]} 13. exf6 {[%emt 0:01:36]} Qxf6 {[%emt 0:00:21]} 14. Qe2 {[%emt 0:02:47]} a4 {[%emt 0:05:59]} 15. Nf1 {[%emt 0:12:06]} Nb6 {[%emt 0:09:49]} 16. Be3 {[%emt 0:03:47]} Nc4 {[%emt 0:01:09]} 17. Rad1 {[%emt 0:01:37]} Nxe3 {[%emt 0:08:22]} 18. Nxe3 {[%emt 0:01:27]} Bd7 {[%emt 0:00:15]} 19. Rd2 {[%emt 0:02:20]} Rfc8 {[%emt 0:09:23]} 20. Ng4 {[%emt 0:02:48]} Qf8 {[%emt 0:05:53]} 21. Nge5 {[%emt 0:02:24]} Nxe5 {[%emt 0:01:50]} 22. Nxe5 {[%emt 0:00:30]} Bxe5 {[%emt 0:00:10]} 23. Qxe5 {[%emt 0:00:22]} Ra6 {[%emt 0:01:26]} 24. h4 {[%emt 0:02:48]} Qf5 {[%emt 0:06:05]} 25. Qe3 {[%emt 0:00:59]} Rac6 {[%emt 0:02:20]} 26. Kh2 {[%emt 0:02:04]} Rc2 {[%emt 0:03:20]} 27. Ree2 {[%emt 0:05:49]} Rxd2 {[%emt 0:03:22]} 28. Qxd2 {[%emt 0:03:35]} b5 {[%emt 0:10:00]} 29. Bh3 {[%emt 0:03:11]} Qf6 {[%emt 0:00:40]} 30. Re5 {[%emt 0:04:32]} b4 {[%emt 0:05:24]} 31. Kg1 {[%emt 0:05:42]} 1-0

[Event "5th EFE Metz Festival IM 2019"]
[Site "Metz"]
[Date "2019.07.27"]
[Round "8.1"]
[White "Maurizzi, Marc Andria"]
[Black "Vedder, Richard"]
[Result "1-0"]
[ECO "C48"]
[WhiteElo "2412"]
[BlackElo "2286"]
[Annotator "NA"]
[PlyCount "79"]
[EventDate "2019.07.22"]
[EventType "tourn"]
[EventCountry "FRA"]
[SourceTitle "playchess.com"]
[Source "ChessBase"]
[SourceQuality "1"]
[TimeControl "5400+30"]

1. e4 {[%emt 0:02:04]} e5 {[%emt 0:00:00]} 2. Nf3 {[%emt 0:00:03]} Nc6 {[%emt 0:00:00]} 3. Nc3 {[%emt 0:00:14]} Nf6 {[%emt 0:00:00]} 4. Bb5 {[%emt 0:00:05]} Bd6 {[%emt 0:00:10]} 5. a3 {[%emt 0:01:04]} O-O {[%emt 0:00:19]} 6. d3 {[%emt 0:00:09]} h6 {[%emt 0:00:06]} 7. h3 {[%emt 0:04:40]} Re8 {[%emt 0:04:14]} 8. Bc4 {[%emt 0:05:35]} Bf8 {[%emt 0:06:45]} 9. g4 {[%emt 0:02:36]} Nh7 {[%emt 0:00:16]} 10. Rg1 {[%emt 0:05:18]} g5 {[%emt 0:07:31]} 11. h4 {[%emt 0:02:44]} d6 {[%emt 0:01:32]} 12. Be3 {[%emt 0:01:37]} Be6 {[%emt 0:01:08]} 13. hxg5 {[%emt 0:00:48]} hxg5 {[%emt 0:01:13]} 14. Qd2 {[%emt 0:00:59]} f6 {[%emt 0:01:27]} 15. O-O-O {[%emt 0:02:45]} Bg7 {[%emt 0:00:16]} 16. Bxe6+ {[%emt 0:04:06]} Rxe6 {[%emt 0:00:02]} 17. d4 {[%emt 0:00:27]} Re8 {[%emt 0:02:24]} 18. dxe5 {[%emt 0:01:07]} dxe5 {[%emt 0:00:27]} 19. Qe2 {[%emt 0:00:44]} Qe7 {[%emt 0:00:19]} 20. Nd5 {[%emt 0:00:48]} Qf7 {[%emt 0:00:17]} 21. Rh1 {[%emt 0:03:04]} Nd8 {[%emt 0:02:04]} 22. Rh5 {[%emt 0:09:34]} Ne6 {[%emt 0:01:40]} 23. Rdh1 {[%emt 0:00:30]} Nhf8 {[%emt 0:00:24]} 24. Qf1 {[%emt 0:02:48]} c6 {[%emt 0:00:41]} 25. Nc3 {[%emt 0:00:28]} Ng6 {[%emt 0:00:49]} 26. Kb1 {[%emt 0:03:15]} Red8 {[%emt 0:02:45]} 27. Ne2 {[%emt 0:01:31]} Rd7 {[%emt 0:03:49]} 28. Ng3 {[%emt 0:00:46]} Rad8 {[%emt 0:00:43]} 29. Nf5 {[%emt 0:08:51]} Bf8 {[%emt 0:01:29]} 30. Bc1 {[%emt 0:01:35]} Rd1 {[%emt 0:07:28]} 31. Qxd1 {[%emt 0:01:47]} Rxd1 {[%emt 0:00:04]} 32. Rxd1 {[%emt 0:00:05]} Nc5 {[%emt 0:00:27]} 33. Rd8 {[%emt 0:02:39]} Qc7 {[%emt 0:00:59]} 34. Ra8 {[%emt 0:00:56]} Nxe4 {[%emt 0:01:18]} 35. Rh6 {[%emt 0:03:12]} Nxf2 {[%emt 0:09:37]} 36. Rxg6+ {[%emt 0:00:55]} Kf7 {[%emt 0:00:06]} 37. Rxf6+ {[%emt 0:00:43]} Kxf6 {[%emt 0:00:09]} 38. Rxf8+ {[%emt 0:00:06]} Ke6 {[%emt 0:01:55]} 39. Nxg5+ {[%emt 0:00:13]} Kd5 {[%emt 0:00:15]} 40. Ne3+ {[%emt 0:00:05]} 1-0

[Event "5th EFE Metz Festival IM 2019"]
[Site "Metz"]
[Date "2019.07.27"]
[Round "8.4"]
[White "Philippe, Guillaume"]
[Black "Micottis, Dorian"]
[Result "1-0"]
[ECO "A05"]
[WhiteElo "2344"]
[BlackElo "2226"]
[Annotator "NA"]
[PlyCount "127"]
[EventDate "2019.07.22"]
[EventType "tourn"]
[EventCountry "FRA"]
[SourceTitle "playchess.com"]
[Source "ChessBase"]
[SourceQuality "1"]
[TimeControl "5400+30"]

1. Nf3 {[%emt 0:06:09]} Nf6 {[%emt 0:00:00]} 2. e3 {[%emt 0:00:04]} g6 {[%emt 0:00:12]} 3. b4 {[%emt 0:00:09]} Bg7 {[%emt 0:00:23]} 4. Bb2 {[%emt 0:00:05]} O-O {[%emt 0:00:25]} 5. c4 {[%emt 0:00:04]} d6 {[%emt 0:00:43]} 6. Be2 {[%emt 0:00:11]} e5 {[%emt 0:00:32]} 7. d3 {[%emt 0:00:04]} e4 {[%emt 0:01:29]} 8. dxe4 {[%emt 0:00:52]} Nxe4 {[%emt 0:00:16]} 9. Qc1 {[%emt 0:02:48]} a5 {[%emt 0:06:11]} 10. b5 {[%emt 0:00:32]} Nd7 {[%emt 0:00:44]} 11. Nbd2 {[%emt 0:01:08]} Ndc5 {[%emt 0:02:15]} 12. Nxe4 {[%emt 0:00:24]} Nxe4 {[%emt 0:00:17]} 13. O-O {[%emt 0:00:20]} Re8 {[%emt 0:02:20]} 14. Rd1 {[%emt 0:02:40]} Bd7 {[%emt 0:08:47]} 15. Bxg7 {[%emt 0:04:10]} Kxg7 {[%emt 0:00:09]} 16. Qb2+ {[%emt 0:00:23]} Qf6 {[%emt 0:03:13]} 17. Qxf6+ {[%emt 0:01:02]} Kxf6 {[%emt 0:00:08]} 18. Rac1 {[%emt 0:00:13]} b6 {[%emt 0:04:27]} 19. Nd4 {[%emt 0:00:17]} Rac8 {[%emt 0:05:22]} 20. Bf3 {[%emt 0:02:59]} Nc5 {[%emt 0:00:52]} 21. Nb3 {[%emt 0:02:07]} Nxb3 {[%emt 0:05:12]} 22. axb3 {[%emt 0:00:04]} Bf5 {[%emt 0:00:53]} 23. Rd4 {[%emt 0:00:42]} Re5 {[%emt 0:05:19]} 24. Bc6 {[%emt 0:07:04]} Rd8 {[%emt 0:10:36]} 25. e4 {[%emt 0:10:45]} Bd7 {[%emt 0:07:20]} 26. Bd5 {[%emt 0:00:13]} Ree8 {[%emt 0:02:26]} 27. f4 {[%emt 0:02:26]} Kg7 {[%emt 0:03:44]} 28. Re1 {[%emt 0:05:59]} f6 {[%emt 0:00:52]} 29. Kf2 {[%emt 0:00:15]} Be6 {[%emt 0:01:42]} 30. Kf3 {[%emt 0:03:33]} Re7 {[%emt 0:02:42]} 31. g4 {[%emt 0:04:57]} g5 {[%emt 0:01:01]} 32. f5 {[%emt 0:01:51]} Bxd5 {[%emt 0:05:51]} 33. cxd5 {[%emt 0:00:11]} h6 {[%emt 0:01:51]} 34. Rc4 {[%emt 0:00:18]} Rdd7 {[%emt 0:00:16]} 35. b4 {[%emt 0:00:32]} axb4 {[%emt 0:00:29]} 36. Rxb4 {[%emt 0:00:09]} Re8 {[%emt 0:00:28]} 37. Ra1 {[%emt 0:00:10]} Rf7 {[%emt 0:01:16]} 38. Rc4 {[%emt 0:01:40]} Ree7 {[%emt 0:00:18]} 39. Rc6 {[%emt 0:00:49]} Rd7 {[%emt 0:00:28]} 40. Ra7 {[%emt 0:00:05]} Rde7 {[%emt 0:00:15]} 41. Rb7 {[%emt 0:00:18]} Rd7 {[%emt 0:00:11]} 42. Rc4 {[%emt 0:00:14]} Rde7 {[%emt 0:00:10]} 43. Ra4 {[%emt 0:00:27]} Rf8 {[%emt 0:00:45]} 44. Raa7 {[%emt 0:00:13]} Rff7 {[%emt 0:00:03]} 45. Rb8 {[%emt 0:00:31]} h5 {[%emt 0:15:09]} 46. gxh5 {[%emt 0:00:19]} Kh6 {[%emt 0:00:04]} 47. Raa8 {[%emt 0:03:52]} Rh7 {[%emt 0:01:09]} 48. Rf8 {[%emt 0:01:55]} Ref7 {[%emt 0:00:20]} 49. Rxf7 {[%emt 0:00:44]} Rxf7 {[%emt 0:00:05]} 50. Rg8 {[%emt 0:00:05]} Kh7 {[%emt 0:00:44]} 51. Rg6 {[%emt 0:00:31]} Rf8 {[%emt 0:00:21]} 52. Kg4 {[%emt 0:00:33]} Rf7 {[%emt 0:00:46]} 53. h4 {[%emt 0:00:39]} gxh4 {[%emt 0:00:10]} 54. Kxh4 {[%emt 0:00:04]} Rf8 {[%emt 0:00:15]} 55. h6 {[%emt 0:00:10]} Rf7 {[%emt 0:00:03]} 56. Kh5 {[%emt 0:00:31]} Kh8 {[%emt 0:00:23]} 57. Rg1 {[%emt 0:00:20]} Kh7 {[%emt 0:01:42]} 58. Ra1 {[%emt 0:00:13]} Re7 {[%emt 0:02:00]} 59. Ra7 {[%emt 0:00:10]} Rxe4 {[%emt 0:00:33]} 60. Rxc7+ {[%emt 0:00:06]} Kg8 {[%emt 0:00:29]} 61. Kg6 {[%emt 0:00:16]} Rg4+ {[%emt 0:00:06]} 62. Kxf6 {[%emt 0:00:06]} Rb4 {[%emt 0:00:09]} 63. Rb7 {[%emt 0:00:44]} Rh4 {[%emt 0:00:37]} 64. Ke6 {[%emt 0:00:42]} 1-0

[Event "5th EFE Metz Festival IM 2019"]
[Site "Metz"]
[Date "2019.07.27"]
[Round "8.5"]
[White "Kurayan, Ruslan"]
[Black "Villegas, Pierre"]
[Result "1/2-1/2"]
[ECO "B13"]
[WhiteElo "2376"]
[BlackElo "2349"]
[Annotator "NA"]
[PlyCount "74"]
[EventDate "2019.07.22"]
[EventType "tourn"]
[EventCountry "FRA"]
[SourceTitle "playchess.com"]
[Source "ChessBase"]
[SourceQuality "1"]
[TimeControl "5400+30"]

1. e4 {[%emt 0:04:23]} c6 {[%emt 0:00:00]} 2. d4 {[%emt 0:00:06]} d5 {[%emt 0:00:00]} 3. exd5 {[%emt 0:00:04]} cxd5 {[%emt 0:00:00]} 4. c4 {[%emt 0:00:04]} Nf6 {[%emt 0:00:00]} 5. Nc3 {[%emt 0:00:04]} Nc6 {[%emt 0:00:13]} 6. cxd5 {[%emt 0:00:06]} Nxd5 {[%emt 0:00:31]} 7. Nf3 {[%emt 0:00:08]} e6 {[%emt 0:05:33]} 8. Bd3 {[%emt 0:06:31]} Be7 {[%emt 0:01:00]} 9. O-O {[%emt 0:00:43]} O-O {[%emt 0:00:17]} 10. Re1 {[%emt 0:03:02]} Nf6 {[%emt 0:05:41]} 11. Bg5 {[%emt 0:13:23]} b6 {[%emt 0:02:40]} 12. a3 {[%emt 0:05:41]} Bb7 {[%emt 0:01:30]} 13. Bc2 {[%emt 0:00:57]} Rc8 {[%emt 0:03:15]} 14. Qd3 {[%emt 0:05:27]} g6 {[%emt 0:00:42]} 15. Bh6 {[%emt 0:11:23]} Re8 {[%emt 0:05:19]} 16. Rad1 {[%emt 0:01:26]} Qd6 {[%emt 0:20:02]} 17. Bb1 {[%emt 0:08:34]} Red8 {[%emt 0:05:49]} 18. Ba2 {[%emt 0:07:46]} Ng4 {[%emt 0:08:40]} 19. Bc1 {[%emt 0:01:22]} Qb8 {[%emt 0:02:58]} 20. d5 {[%emt 0:05:25]} Bc5 {[%emt 0:04:05]} 21. Ne4 {[%emt 0:04:27]} Nce5 {[%emt 0:03:07]} 22. Nxe5 {[%emt 0:00:45]} Qxe5 {[%emt 0:00:29]} 23. Qg3 {[%emt 0:10:51]} Qxg3 {[%emt 0:03:12]} 24. hxg3 {[%emt 0:00:06]} Bxd5 {[%emt 0:07:29]} 25. Bxd5 {[%emt 0:00:05]} Rxd5 {[%emt 0:02:00]} 26. Rxd5 {[%emt 0:00:06]} exd5 {[%emt 0:00:03]} 27. Nxc5 {[%emt 0:00:07]} Rxc5 {[%emt 0:05:59]} 28. f3 {[%emt 0:07:32]} Ne5 {[%emt 0:03:50]} 29. Bg5 {[%emt 0:02:16]} Nd7 {[%emt 0:02:59]} 30. Re7 {[%emt 0:00:51]} f6 {[%emt 0:02:56]} 31. Bh6 {[%emt 0:01:04]} Ne5 {[%emt 0:01:16]} 32. Rxa7 {[%emt 0:00:30]} g5 {[%emt 0:01:39]} 33. Rg7+ {[%emt 0:00:31]} Kh8 {[%emt 0:00:04]} 34. Rb7 {[%emt 0:00:33]} Kg8 {[%emt 0:00:02]} 35. Rg7+ {[%emt 0:00:31]} Kh8 {[%emt 0:00:00]} 36. Re7 {[%emt 0:00:26]} Kg8 {[%emt 0:00:19]} 37. Rg7+ {[%emt 0:00:34]} Kh8 1/2-1/2

[Event "5th EFE Metz Festival IM 2019"]
[Site "Metz"]
[Date "2019.07.28"]
[Round "9.3"]
[White "Villegas, Pierre"]
[Black "Ravi, Teja S."]
[Result "1/2-1/2"]
[ECO "D11"]
[WhiteElo "2349"]
[BlackElo "2410"]
[Annotator "NA"]
[PlyCount "55"]
[EventDate "2019.07.22"]
[EventType "tourn"]
[EventCountry "FRA"]
[SourceTitle "playchess.com"]
[Source "ChessBase"]
[SourceQuality "1"]
[TimeControl "5400+30"]

1. d4 {[%emt 0:00:00]} d5 {[%emt 0:00:00]} 2. c4 {[%emt 0:00:00]} c6 {[%emt 0:00:04]} 3. Nf3 {[%emt 0:00:00]} Nf6 {[%emt 0:00:06]} 4. Qc2 {[%emt 0:00:14]} dxc4 {[%emt 0:01:20]} 5. e4 {[%emt 0:00:17]} b5 {[%emt 0:00:09]} 6. b3 {[%emt 0:00:17]} cxb3 {[%emt 0:00:21]} 7. axb3 {[%emt 0:00:05]} e6 {[%emt 0:00:11]} 8. Bd2 {[%emt 0:00:33]} a5 {[%emt 0:00:04]} 9. Bd3 {[%emt 0:00:24]} Bb7 {[%emt 0:02:41]} 10. O-O {[%emt 0:00:42]} Be7 {[%emt 0:00:16]} 11. Rc1 {[%emt 0:00:36]} h6 {[%emt 0:01:40]} 12. Qd1 {[%emt 0:01:07]} b4 {[%emt 0:05:59]} 13. Qe2 {[%emt 0:00:55]} Ba6 {[%emt 0:00:52]} 14. Bxa6 {[%emt 0:09:20]} Rxa6 {[%emt 0:00:12]} 15. Bf4 {[%emt 0:00:11]} Ra8 {[%emt 0:03:01]} 16. Bxb8 {[%emt 0:02:54]} Qxb8 {[%emt 0:01:52]} 17. Rxc6 {[%emt 0:00:32]} O-O {[%emt 0:01:02]} 18. Nbd2 {[%emt 0:01:18]} Qb7 {[%emt 0:08:10]} 19. Qc4 {[%emt 0:18:03]} Rfc8 {[%emt 0:02:48]} 20. Ne5 {[%emt 0:02:00]} Nd7 {[%emt 0:20:37]} 21. Rc1 {[%emt 0:27:51]} Rxc6 {[%emt 0:01:23]} 22. Nxc6 {[%emt 0:00:29]} Bg5 {[%emt 0:02:18]} 23. Rc2 {[%emt 0:01:49]} Nf6 {[%emt 0:00:13]} 24. f3 {[%emt 0:03:33]} Qa6 {[%emt 0:04:40]} 25. Nf1 {[%emt 0:08:03]} Nd7 {[%emt 0:03:29]} 26. g3 {[%emt 0:05:59]} Qb6 {[%emt 0:02:57]} 27. f4 {[%emt 0:02:34]} Bd8 {[%emt 0:00:25]} 28. Nd2 {[%emt 0:01:32]} 1/2-1/2

[Event "5th EFE Metz Festival IM 2019"]
[Site "Metz"]
[Date "2019.07.28"]
[Round "9.4"]
[White "Mouhamad, Joachin"]
[Black "Maurizzi, Marc Andria"]
[Result "1/2-1/2"]
[ECO "C11"]
[WhiteElo "2302"]
[BlackElo "2412"]
[Annotator "NA"]
[PlyCount "75"]
[EventDate "2019.07.22"]
[EventType "tourn"]
[EventCountry "FRA"]
[SourceTitle "playchess.com"]
[Source "ChessBase"]
[SourceQuality "1"]
[TimeControl "5400+30"]

1. e4 {[%emt 0:09:00]} e6 {[%emt 0:00:41]} 2. d4 {[%emt 0:00:08]} d5 {[%emt 0:00:02]} 3. Nc3 {[%emt 0:00:07]} Nf6 {[%emt 0:00:04]} 4. e5 {[%emt 0:00:05]} Nfd7 {[%emt 0:00:03]} 5. f4 {[%emt 0:00:05]} c5 6. Nf3 {[%emt 0:00:12]} Nc6 {[%emt 0:00:06]} 7. Be3 {[%emt 0:00:10]} Be7 {[%emt 0:00:06]} 8. Qd2 {[%emt 0:00:08]} O-O {[%emt 0:00:05]} 9. dxc5 {[%emt 0:00:22]} Qa5 {[%emt 0:00:12]} 10. O-O-O {[%emt 0:00:43]} b6 {[%emt 0:00:03]} 11. Bb5 {[%emt 0:00:16]} Nb4 {[%emt 0:00:07]} 12. a3 {[%emt 0:00:13]} bxc5 {[%emt 0:00:15]} 13. Kb1 {[%emt 0:00:07]} Nb6 {[%emt 0:08:25]} 14. axb4 {[%emt 0:33:53]} cxb4 {[%emt 0:00:10]} 15. Nd4 {[%emt 0:12:20]} bxc3 {[%emt 0:02:42]} 16. Qxc3 {[%emt 0:01:15]} Qxc3 {[%emt 0:01:03]} 17. bxc3 {[%emt 0:00:05]} Bd7 {[%emt 0:09:19]} 18. Bxd7 {[%emt 0:03:59]} Nxd7 {[%emt 0:00:03]} 19. Nc6 {[%emt 0:08:00]} Ba3 {[%emt 0:06:04]} 20. c4 {[%emt 0:03:16]} Rfc8 {[%emt 0:00:32]} 21. cxd5 {[%emt 0:00:17]} exd5 {[%emt 0:00:02]} 22. Na5 {[%emt 0:00:24]} Rab8+ {[%emt 0:04:19]} 23. Nb3 {[%emt 0:02:16]} a5 {[%emt 0:00:43]} 24. Rxd5 {[%emt 0:05:31]} a4 {[%emt 0:00:51]} 25. Rxd7 {[%emt 0:00:27]} axb3 {[%emt 0:00:27]} 26. c4 {[%emt 0:00:32]} Rxc4 {[%emt 0:00:45]} 27. Rhd1 {[%emt 0:01:16]} h6 {[%emt 0:10:02]} 28. Rd8+ {[%emt 0:01:14]} Rxd8 {[%emt 0:00:01]} 29. Rxd8+ {[%emt 0:00:07]} Kh7 {[%emt 0:00:01]} 30. Rd3 {[%emt 0:00:55]} Bc5 {[%emt 0:01:11]} 31. Bxc5 {[%emt 0:05:15]} Rxc5 {[%emt 0:00:04]} 32. Rxb3 g5 {[%emt 0:01:54]} 33. Rb7 {[%emt 0:05:15]} Kg6 {[%emt 0:01:09]} 34. Rb6+ {[%emt 0:00:17]} Kg7 {[%emt 0:00:13]} 35. fxg5 {[%emt 0:00:38]} hxg5 {[%emt 0:00:04]} 36. e6 {[%emt 0:00:11]} f5 {[%emt 0:03:11]} 37. e7 {[%emt 0:05:00]} Re5 {[%emt 0:00:49]} 38. Kc2 {[%emt 0:00:27]} 1/2-1/2

[Event "5th EFE Metz Festival IM 2019"]
[Site "Metz"]
[Date "2019.07.28"]
[Round "9.5"]
[White "Harutyunyan, Ruben"]
[Black "Delorme, Alban"]
[Result "1/2-1/2"]
[ECO "A05"]
[WhiteElo "2326"]
[BlackElo "2327"]
[Annotator "NA"]
[PlyCount "66"]
[EventDate "2019.07.22"]
[EventType "tourn"]
[EventCountry "FRA"]
[SourceTitle "playchess.com"]
[Source "ChessBase"]
[SourceQuality "1"]
[TimeControl "5400+30"]

1. Nf3 {[%emt 0:11:29]} Nf6 {[%emt 0:35:28]} 2. g3 {[%emt 0:00:00]} c5 {[%emt 0:00:15]} 3. Bg2 {[%emt 0:00:00]} g6 {[%emt 0:03:57]} 4. O-O {[%emt 0:00:00]} Bg7 {[%emt 0:00:06]} 5. d3 {[%emt 0:00:00]} O-O {[%emt 0:01:38]} 6. e4 {[%emt 0:00:08]} Nc6 {[%emt 0:00:56]} 7. Re1 {[%emt 0:00:11]} d6 {[%emt 0:06:02]} 8. c3 {[%emt 0:00:24]} e5 {[%emt 0:02:10]} 9. Nbd2 {[%emt 0:05:29]} h6 {[%emt 0:02:57]} 10. a3 {[%emt 0:05:34]} a5 {[%emt 0:01:53]} 11. a4 {[%emt 0:01:37]} Be6 {[%emt 0:00:08]} 12. Nf1 {[%emt 0:07:19]} Qd7 {[%emt 0:03:32]} 13. Ne3 {[%emt 0:01:41]} Kh7 {[%emt 0:05:33]} 14. Nd2 {[%emt 0:03:26]} Rae8 {[%emt 0:03:57]} 15. Ndc4 {[%emt 0:10:54]} Ng4 {[%emt 0:04:09]} 16. Nxg4 {[%emt 0:16:50]} Bxg4 {[%emt 0:00:09]} 17. Nb6 {[%emt 0:00:08]} Qe6 {[%emt 0:01:02]} 18. f3 {[%emt 0:01:23]} Bh3 {[%emt 0:00:06]} 19. Nd5 {[%emt 0:00:30]} Rd8 {[%emt 0:02:04]} 20. Qb3 {[%emt 0:12:51]} Rd7 {[%emt 0:00:26]} 21. Qc4 {[%emt 0:01:31]} Bxg2 {[%emt 0:00:54]} 22. Kxg2 {[%emt 0:00:03]} f5 {[%emt 0:02:07]} 23. Nb6 {[%emt 0:01:31]} Qxc4 {[%emt 0:00:04]} 24. Nxc4 {[%emt 0:00:47]} f4 {[%emt 0:03:25]} 25. Nb6 {[%emt 0:01:20]} Rdd8 {[%emt 0:00:55]} 26. g4 {[%emt 0:00:11]} Ne7 {[%emt 0:00:12]} 27. Nd5 {[%emt 0:02:03]} Nxd5 {[%emt 0:02:59]} 28. exd5 {[%emt 0:00:05]} g5 {[%emt 0:01:24]} 29. Ra3 {[%emt 0:00:51]} Rd7 {[%emt 0:00:11]} 30. Rb3 {[%emt 0:01:43]} Bf6 {[%emt 0:00:01]} 31. Bd2 {[%emt 0:00:40]} Kg6 {[%emt 0:00:38]} 32. h3 {[%emt 0:03:42]} h5 {[%emt 0:00:22]} 33. c4 {[%emt 0:02:59]} Bd8 {[%emt 0:00:41]} 1/2-1/2